[Event "Titled Tuesday Blitz June 8 2021"]
[White "Petriashvili, Nikoloz"]
[Black "Martin Duque, Jesus"]
[WhiteFideId "13611216"]
[BlackFideId "2208954"]
[WhiteElo "2749"]
[BlackElo "2456"]
[Result "1/2-1/2"]
[Round "07"]
[TimeControl "180+1"]
[Date "2021.06.08"]
[WhiteClock "0:00:00"]
[BlackClock "0:00:17"]

1. e4 {[%clk 0:03:00]}  c5 {[%clk 0:02:59]} 2. Nf3 {[%clk 0:03:01]}  e6 {[%clk 0:02:59]} 3. b3 {[%clk 0:03:01]}  b6 {[%clk 0:02:58]} 4. Bb2 {[%clk 0:03:01]}  Bb7 {[%clk 0:02:58]} 5. Nc3 {[%clk 0:03:01]}  Nc6 {[%clk 0:02:57]} 6. g3 {[%clk 0:02:58]}  Nf6 {[%clk 0:02:53]} 7. Bg2 {[%clk 0:02:58]}  Be7 {[%clk 0:02:51]} 8. O-O {[%clk 0:02:58]}  O-O {[%clk 0:02:51]} 9. Re1 {[%clk 0:02:58]}  d6 {[%clk 0:02:46]} 10. e5 {[%clk 0:02:57]}  Nxe5 {[%clk 0:02:44]} 11. Nxe5 {[%clk 0:02:58]}  Bxg2 {[%clk 0:02:37]} 12. Kxg2 {[%clk 0:02:57]}  dxe5 {[%clk 0:02:37]} 13. Rxe5 {[%clk 0:02:58]}  Qc7 {[%clk 0:02:34]} 14. Re1 {[%clk 0:02:55]}  Rad8 {[%clk 0:02:32]} 15. d3 {[%clk 0:02:55]}  Qc6+ {[%clk 0:02:15]} 16. Qf3 {[%clk 0:02:55]}  Qxf3+ {[%clk 0:02:16]} 17. Kxf3 {[%clk 0:02:56]}  Nd5 {[%clk 0:02:16]} 18. Nxd5 {[%clk 0:02:55]}  Rxd5 {[%clk 0:02:17]} 19. a4 {[%clk 0:02:56]}  a6 {[%clk 0:02:16]} 20. h4 {[%clk 0:02:55]}  Rfd8 {[%clk 0:02:15]} 21. Re4 {[%clk 0:02:55]}  Bf8 {[%clk 0:02:07]} 22. Be5 {[%clk 0:02:50]}  R8d7 {[%clk 0:02:01]} 23. h5 {[%clk 0:02:47]}  f6 {[%clk 0:02:00]} 24. Bc3 {[%clk 0:02:46]}  e5 {[%clk 0:01:53]} 25. g4 {[%clk 0:02:46]}  Kf7 {[%clk 0:01:51]} 26. Kg2 {[%clk 0:02:45]}  g6 {[%clk 0:01:38]} 27. Rh1 {[%clk 0:02:44]}  Kg8 {[%clk 0:01:34]} 28. hxg6 {[%clk 0:02:42]}  hxg6 {[%clk 0:01:35]} 29. g5 {[%clk 0:02:38]}  Bg7 {[%clk 0:01:34]} 30. gxf6 {[%clk 0:02:38]}  Bxf6 {[%clk 0:01:35]} 31. Rhe1 {[%clk 0:02:38]}  Re7 {[%clk 0:01:30]} 32. f4 {[%clk 0:02:38]}  Kf7 {[%clk 0:01:20]} 33. fxe5 {[%clk 0:02:37]}  Bg7 {[%clk 0:01:21]} 34. e6+ {[%clk 0:02:35]}  Kg8 {[%clk 0:01:21]} 35. Bd2 {[%clk 0:02:26]}  Bf6 {[%clk 0:01:15]} 36. Kg3 {[%clk 0:02:18]}  Kg7 {[%clk 0:01:11]} 37. Kg4 {[%clk 0:02:17]}  Rh5 {[%clk 0:01:10]} 38. Bf4 {[%clk 0:02:08]}  Rd5 {[%clk 0:01:02]} 39. R1e2 {[%clk 0:01:59]}  b5 {[%clk 0:00:57]} 40. axb5 {[%clk 0:01:49]}  axb5 {[%clk 0:00:57]} 41. Rh2 {[%clk 0:01:39]}  g5 {[%clk 0:00:55]} 42. Bg3 {[%clk 0:01:31]}  Kg6 {[%clk 0:00:54]} 43. Rf2 {[%clk 0:01:27]}  Rd4 {[%clk 0:00:52]} 44. Rxd4 {[%clk 0:01:16]}  Bxd4 {[%clk 0:00:52]} 45. Re2 {[%clk 0:00:52]}  Kf6 {[%clk 0:00:51]} 46. Be1 {[%clk 0:00:49]}  Rxe6 {[%clk 0:00:51]} 47. Rxe6+ {[%clk 0:00:49]}  Kxe6 {[%clk 0:00:52]} 48. Kxg5 {[%clk 0:00:49]}  c4 {[%clk 0:00:52]} 49. Kf4 {[%clk 0:00:33]}  cxb3 {[%clk 0:00:51]} 50. cxb3 {[%clk 0:00:33]}  Kd5 {[%clk 0:00:51]} 51. Kf3 {[%clk 0:00:33]}  Bc5 {[%clk 0:00:48]} 52. Ke2 {[%clk 0:00:33]}  Bd4 {[%clk 0:00:48]} 53. Bd2 {[%clk 0:00:33]}  Bc5 {[%clk 0:00:48]} 54. Bc3 {[%clk 0:00:32]}  Bd6 {[%clk 0:00:49]} 55. Ke3 {[%clk 0:00:31]}  Bc5+ {[%clk 0:00:49]} 56. Kd2 {[%clk 0:00:30]}  Bd6 {[%clk 0:00:49]} 57. Kc2 {[%clk 0:00:31]}  Be7 {[%clk 0:00:49]} 58. Bb2 {[%clk 0:00:31]}  Bd6 {[%clk 0:00:49]} 59. Kd2 {[%clk 0:00:31]}  Be7 {[%clk 0:00:50]} 60. Bc1 {[%clk 0:00:30]}  Bd6 {[%clk 0:00:50]} 61. Kc3 {[%clk 0:00:31]}  Be5+ {[%clk 0:00:50]} 62. Kb4 {[%clk 0:00:30]}  Kc6 {[%clk 0:00:49]} 63. Be3 {[%clk 0:00:29]}  Bd6+ {[%clk 0:00:49]} 64. Ka5 {[%clk 0:00:29]}  Be7 {[%clk 0:00:47]} 65. Ka6 {[%clk 0:00:29]}  Bd6 {[%clk 0:00:48]} 66. Bd4 {[%clk 0:00:29]}  Be7 {[%clk 0:00:48]} 67. Bb2 {[%clk 0:00:28]}  Bd6 {[%clk 0:00:48]} 68. Bc1 {[%clk 0:00:28]}  Be7 {[%clk 0:00:49]} 69. d4 {[%clk 0:00:28]}  Bd6 {[%clk 0:00:48]} 70. Bg5 {[%clk 0:00:28]}  Bf8 {[%clk 0:00:44]} 71. Bf6 {[%clk 0:00:28]}  Bd6 {[%clk 0:00:40]} 72. Be5 {[%clk 0:00:28]}  Bf8 {[%clk 0:00:39]} 73. Bh8 {[%clk 0:00:28]}  Be7 {[%clk 0:00:39]} 74. Bg7 {[%clk 0:00:26]}  Bd6 {[%clk 0:00:39]} 75. Bh6 {[%clk 0:00:26]}  Be7 {[%clk 0:00:40]} 76. Bd2 {[%clk 0:00:19]}  Bd6 {[%clk 0:00:40]} 77. Ka5 {[%clk 0:00:19]}  Bc7+ {[%clk 0:00:38]} 78. Ka6 {[%clk 0:00:19]}  Bd6 {[%clk 0:00:39]} 79. d5+ {[%clk 0:00:19]}  Kxd5 {[%clk 0:00:39]} 80. Kxb5 {[%clk 0:00:20]}  Bf8 {[%clk 0:00:33]} 81. Bb4 {[%clk 0:00:20]}  Bh6 {[%clk 0:00:32]} 82. Bc3 {[%clk 0:00:19]}  Bf8 {[%clk 0:00:32]} 83. Bf6 {[%clk 0:00:18]}  Bd6 {[%clk 0:00:30]} 84. Bd8 {[%clk 0:00:18]}  Bf8 {[%clk 0:00:30]} 85. Bb6 {[%clk 0:00:17]}  Be7 {[%clk 0:00:29]} 86. Ba5 {[%clk 0:00:18]}  Bf8 {[%clk 0:00:29]} 87. Bb4 {[%clk 0:00:18]}  Bh6 {[%clk 0:00:29]} 88. Be7 {[%clk 0:00:16]}  Bd2 {[%clk 0:00:29]} 89. Bd8 {[%clk 0:00:16]}  Be1 {[%clk 0:00:29]} 90. Ba5 {[%clk 0:00:16]}  Bh4 {[%clk 0:00:26]} 91. Bc7 {[%clk 0:00:06]}  Be7 {[%clk 0:00:25]} 92. Ka6 {[%clk 0:00:06]}  Bf8 {[%clk 0:00:25]} 93. Ba5 {[%clk 0:00:05]}  Be7 {[%clk 0:00:25]} 94. Bc3 {[%clk 0:00:05]}  Bf8 {[%clk 0:00:25]} 95. Ka5 {[%clk 0:00:06]}  Be7 {[%clk 0:00:24]} 96. Bb4 {[%clk 0:00:06]}  Bh4 {[%clk 0:00:24]} 97. Ba3 {[%clk 0:00:07]}  Be1+ {[%clk 0:00:24]} 98. Ka6 {[%clk 0:00:08]}  Bd2 {[%clk 0:00:23]} 99. Bb2 {[%clk 0:00:08]}  Be1 {[%clk 0:00:24]} 100. Bf6 {[%clk 0:00:08]}  Bd2 {[%clk 0:00:24]} 101. Bh4 {[%clk 0:00:08]}  Bc3 {[%clk 0:00:23]} 102. Bf2 {[%clk 0:00:07]}  Bd2 {[%clk 0:00:24]} 103. Kb5 {[%clk 0:00:07]}  Bc3 {[%clk 0:00:21]} 104. Ka6 {[%clk 0:00:03]}  Bd2 {[%clk 0:00:21]} 105. Bb6 {[%clk 0:00:04]}  Be1 {[%clk 0:00:21]} 106. Ba5 {[%clk 0:00:05]}  Bh4 {[%clk 0:00:21]} 107. b4 {[%clk 0:00:05]}  Bf2 {[%clk 0:00:19]} 108. b5 {[%clk 0:00:04]}  Kd6 {[%clk 0:00:19]} 109. Bb6 {[%clk 0:00:01]}  Bh4 {[%clk 0:00:19]} 110. Be3 {[%clk 0:00:01]}  Kd7 {[%clk 0:00:17]} 111. Bf4 {[%clk 0:00:00]}  Bd8 {[%clk 0:00:17]} 1/2-1/2


[Site "https://www.chess.com"]

[Event "Titled Tuesday Blitz June 8 2021"]
[White "Pichot, Alan"]
[Black "Vidit, Santosh Gujrathi"]
[WhiteFideId "110973"]
[BlackFideId "5029465"]
[WhiteElo "2622"]
[BlackElo "2735"]
[Result "0-1"]
[Round "07"]
[TimeControl "180+1"]
[Date "2021.06.08"]
[WhiteClock "0:00:03"]
[BlackClock "0:00:04"]

1. e4 {[%clk 0:03:00]}  e5 {[%clk 0:02:53]} 2. Nf3 {[%clk 0:03:01]}  Nc6 {[%clk 0:02:52]} 3. Bb5 {[%clk 0:02:59]}  a6 {[%clk 0:02:46]} 4. Ba4 {[%clk 0:02:59]}  Nf6 {[%clk 0:02:46]} 5. O-O {[%clk 0:03:00]}  Be7 {[%clk 0:02:46]} 6. Re1 {[%clk 0:03:00]}  b5 {[%clk 0:02:45]} 7. Bb3 {[%clk 0:03:00]}  d6 {[%clk 0:02:45]} 8. c3 {[%clk 0:03:01]}  O-O {[%clk 0:02:45]} 9. h3 {[%clk 0:03:01]}  Nb8 {[%clk 0:02:45]} 10. d4 {[%clk 0:03:02]}  Nbd7 {[%clk 0:02:45]} 11. Nbd2 {[%clk 0:02:57]}  Bb7 {[%clk 0:02:45]} 12. Bc2 {[%clk 0:02:58]}  Re8 {[%clk 0:02:39]} 13. Nf1 {[%clk 0:02:58]}  Bf8 {[%clk 0:02:39]} 14. Ng3 {[%clk 0:02:59]}  g6 {[%clk 0:02:36]} 15. a4 {[%clk 0:02:59]}  Bg7 {[%clk 0:02:32]} 16. Bd3 {[%clk 0:02:56]}  c6 {[%clk 0:02:32]} 17. b3 {[%clk 0:02:53]}  Qc7 {[%clk 0:02:27]} 18. Bb2 {[%clk 0:02:36]}  Rad8 {[%clk 0:02:17]} 19. axb5 {[%clk 0:02:35]}  axb5 {[%clk 0:02:14]} 20. Qc2 {[%clk 0:02:29]}  Qb6 {[%clk 0:01:51]} 21. Rad1 {[%clk 0:02:22]}  c5 {[%clk 0:01:45]} 22. d5 {[%clk 0:02:20]}  Ra8 {[%clk 0:01:41]} 23. Ra1 {[%clk 0:02:17]}  Reb8 {[%clk 0:01:33]} 24. Bf1 {[%clk 0:02:17]}  Bc8 {[%clk 0:01:32]} 25. Reb1 {[%clk 0:02:15]}  Ne8 {[%clk 0:01:25]} 26. Bc1 {[%clk 0:02:14]}  Nc7 {[%clk 0:01:22]} 27. Be3 {[%clk 0:02:15]}  Qb7 {[%clk 0:01:21]} 28. h4 {[%clk 0:02:07]}  Nf6 {[%clk 0:01:18]} 29. h5 {[%clk 0:02:06]}  Ng4 {[%clk 0:01:18]} 30. Bg5 {[%clk 0:02:00]}  Ne8 {[%clk 0:01:08]} 31. Nh2 {[%clk 0:01:57]}  Nxh2 {[%clk 0:01:03]} 32. Kxh2 {[%clk 0:01:58]}  Bf6 {[%clk 0:00:37]} 33. Be3 {[%clk 0:01:56]}  Bd7 {[%clk 0:00:33]} 34. Qd2 {[%clk 0:01:47]}  Rxa1 {[%clk 0:00:33]} 35. Rxa1 {[%clk 0:01:48]}  Ra8 {[%clk 0:00:33]} 36. Qd1 {[%clk 0:01:49]}  Be7 {[%clk 0:00:28]} 37. b4 {[%clk 0:01:42]}  c4 {[%clk 0:00:26]} 38. Qc1 {[%clk 0:01:28]}  Rxa1 {[%clk 0:00:19]} 39. Qxa1 {[%clk 0:01:27]}  Bd8 {[%clk 0:00:19]} 40. Be2 {[%clk 0:01:20]}  Bb6 {[%clk 0:00:19]} 41. Nf1 {[%clk 0:01:21]}  Kf8 {[%clk 0:00:17]} 42. Bxb6 {[%clk 0:01:20]}  Qxb6 {[%clk 0:00:18]} 43. Ne3 {[%clk 0:01:21]}  Ke7 {[%clk 0:00:18]} 44. g3 {[%clk 0:01:19]}  Nf6 {[%clk 0:00:18]} 45. hxg6 {[%clk 0:01:18]}  hxg6 {[%clk 0:00:17]} 46. Bf3 {[%clk 0:01:18]}  Qb8 {[%clk 0:00:17]} 47. Kg1 {[%clk 0:01:12]}  Bc8 {[%clk 0:00:16]} 48. Qa5 {[%clk 0:01:04]}  Qb7 {[%clk 0:00:16]} 49. Kg2 {[%clk 0:00:55]}  Qa6 {[%clk 0:00:12]} 50. Qc7+ {[%clk 0:00:55]}  Bd7 {[%clk 0:00:10]} 51. Qb8 {[%clk 0:00:53]}  Qc8 {[%clk 0:00:08]} 52. Qa7 {[%clk 0:00:53]}  Ne8 {[%clk 0:00:08]} 53. Bg4 {[%clk 0:00:49]}  Qc7 {[%clk 0:00:09]} 54. Qa8 {[%clk 0:00:49]}  Nf6 {[%clk 0:00:09]} 55. Bxd7 {[%clk 0:00:48]}  Qxd7 {[%clk 0:00:09]} 56. f3 {[%clk 0:00:48]}  Qe8 {[%clk 0:00:10]} 57. Qb7+ {[%clk 0:00:47]}  Qd7 {[%clk 0:00:10]} 58. Qb8 {[%clk 0:00:48]}  Ne8 {[%clk 0:00:10]} 59. Ng4 {[%clk 0:00:47]}  f5 {[%clk 0:00:09]} 60. exf5 {[%clk 0:00:36]}  gxf5 {[%clk 0:00:10]} 61. Ne3 {[%clk 0:00:37]}  Kf7 {[%clk 0:00:09]} 62. g4 {[%clk 0:00:31]}  fxg4 {[%clk 0:00:09]} 63. fxg4 {[%clk 0:00:32]}  Nf6 {[%clk 0:00:04]} 64. Qh8 {[%clk 0:00:32]}  Kg6 {[%clk 0:00:04]} 65. Kg3 {[%clk 0:00:16]}  Qh7 {[%clk 0:00:04]} 66. Qxh7+ {[%clk 0:00:07]}  Kxh7 {[%clk 0:00:03]} 67. Kf3 {[%clk 0:00:03]}  Kg6 {[%clk 0:00:04]} 68. Ke2 {[%clk 0:00:02]}  Ne4 {[%clk 0:00:02]} 69. Nd1 {[%clk 0:00:01]}  Kg5 {[%clk 0:00:03]} 70. Kf3 {[%clk 0:00:02]}  Nd2+ {[%clk 0:00:01]} 71. Ke2 {[%clk 0:00:02]}  Ne4 {[%clk 0:00:02]} 72. Kf3 {[%clk 0:00:02]}  Nf6 {[%clk 0:00:02]} 73. Ne3 {[%clk 0:00:03]}  Kg6 {[%clk 0:00:02]} 74. Kf2 {[%clk 0:00:01]}  Ne4+ {[%clk 0:00:02]} 75. Kf3 {[%clk 0:00:02]}  Nxc3 {[%clk 0:00:03]} 76. Kf2 {[%clk 0:00:02]}  Ne4+ {[%clk 0:00:03]} 77. Ke2 {[%clk 0:00:02]}  Nf6 {[%clk 0:00:03]} 78. Kf3 {[%clk 0:00:02]}  Kg5 {[%clk 0:00:03]} 79. Nf5 {[%clk 0:00:03]}  c3 {[%clk 0:00:02]} 80. Ke2 {[%clk 0:00:03]}  Nxd5 {[%clk 0:00:02]} 81. Nxd6 {[%clk 0:00:03]}  Nxb4 {[%clk 0:00:03]} 82. Nxb5 {[%clk 0:00:04]}  c2 {[%clk 0:00:03]} 83. Kd2 {[%clk 0:00:04]}  Kxg4 {[%clk 0:00:04]} 84. Nc3 {[%clk 0:00:03]}  Kf3 {[%clk 0:00:04]} 0-1


[Site "https://www.chess.com"]

[Event "Titled Tuesday Blitz June 8 2021"]
[White "Politov, Pavel Y."]
[Black "Piesik, Piotr"]
[WhiteFideId "24110515"]
[BlackFideId "1136194"]
[WhiteElo "2090"]
[BlackElo "2369"]
[Result "1-0"]
[Round "07"]
[TimeControl "180+1"]
[Date "2021.06.08"]
[WhiteClock "0:01:02"]
[BlackClock "0:01:34"]

1. e4 {[%clk 0:03:00]}  g6 {[%clk 0:02:59]} 2. d4 {[%clk 0:03:00]}  Bg7 {[%clk 0:03:00]} 3. Nc3 {[%clk 0:03:00]}  c6 {[%clk 0:03:00]} 4. Nf3 {[%clk 0:03:01]}  d6 {[%clk 0:03:00]} 5. Be2 {[%clk 0:03:00]}  Nf6 {[%clk 0:03:01]} 6. e5 {[%clk 0:02:58]}  Nd5 {[%clk 0:02:59]} 7. Nxd5 {[%clk 0:02:54]}  cxd5 {[%clk 0:03:00]} 8. O-O {[%clk 0:02:49]}  Nc6 {[%clk 0:02:59]} 9. Re1 {[%clk 0:02:47]}  O-O {[%clk 0:02:57]} 10. Bg5 {[%clk 0:02:44]}  Bg4 {[%clk 0:02:50]} 11. exd6 {[%clk 0:02:40]}  Qxd6 {[%clk 0:02:49]} 12. c3 {[%clk 0:02:36]}  e6 {[%clk 0:02:46]} 13. Qd2 {[%clk 0:02:35]}  a6 {[%clk 0:02:43]} 14. Bh6 {[%clk 0:02:34]}  b5 {[%clk 0:02:41]} 15. Bxg7 {[%clk 0:02:33]}  Kxg7 {[%clk 0:02:42]} 16. Ne5 {[%clk 0:02:17]}  Bxe2 {[%clk 0:02:41]} 17. Rxe2 {[%clk 0:02:17]}  Nxe5 {[%clk 0:02:41]} 18. Rxe5 {[%clk 0:02:18]}  a5 {[%clk 0:02:39]} 19. h4 {[%clk 0:02:18]}  b4 {[%clk 0:02:33]} 20. h5 {[%clk 0:02:14]}  bxc3 {[%clk 0:02:33]} 21. bxc3 {[%clk 0:02:14]}  Rfc8 {[%clk 0:02:28]} 22. Rae1 {[%clk 0:02:10]}  Qd8 {[%clk 0:02:18]} 23. R1e3 {[%clk 0:01:38]}  Kf8 {[%clk 0:01:52]} 24. Rf3 {[%clk 0:01:28]}  Ke8 {[%clk 0:01:48]} 25. Qh6 {[%clk 0:01:19]}  Rab8 {[%clk 0:01:37]} 26. Rxe6+ {[%clk 0:01:09]}  fxe6 {[%clk 0:01:35]} 27. Qf8+ {[%clk 0:01:00]}  Kd7 {[%clk 0:01:33]} 28. Rf7+ {[%clk 0:01:01]}  Kc6 {[%clk 0:01:34]} 29. Qc5# {[%clk 0:01:02]} 1-0


[Site "https://www.chess.com"]

[Event "Titled Tuesday Blitz June 8 2021"]
[White "Priasmoro, Novendra"]
[Black "Harshavardhan G B"]
[WhiteFideId "7105029"]
[BlackFideId "25059009"]
[WhiteElo "2821"]
[BlackElo "2626"]
[Result "1-0"]
[Round "07"]
[TimeControl "180+1"]
[Date "2021.06.08"]
[WhiteClock "0:01:17"]
[BlackClock "0:00:22"]

1. e4 {[%clk 0:03:00]}  e5 {[%clk 0:02:57]} 2. Nf3 {[%clk 0:03:01]}  Nc6 {[%clk 0:02:55]} 3. Bb5 {[%clk 0:03:01]}  a6 {[%clk 0:02:55]} 4. Ba4 {[%clk 0:03:01]}  d6 {[%clk 0:02:53]} 5. O-O {[%clk 0:02:53]}  Bg4 {[%clk 0:02:50]} 6. h3 {[%clk 0:02:48]}  h5 {[%clk 0:02:46]} 7. Bxc6+ {[%clk 0:02:48]}  bxc6 {[%clk 0:02:45]} 8. d4 {[%clk 0:02:29]}  Bxf3 {[%clk 0:02:44]} 9. Qxf3 {[%clk 0:02:28]}  exd4 {[%clk 0:02:44]} 10. Qb3 {[%clk 0:02:27]}  Nf6 {[%clk 0:01:50]} 11. Re1 {[%clk 0:02:24]}  Be7 {[%clk 0:01:49]} 12. Qa4 {[%clk 0:02:15]}  Qd7 {[%clk 0:01:47]} 13. Qxd4 {[%clk 0:02:15]}  c5 {[%clk 0:01:46]} 14. Qd3 {[%clk 0:02:15]}  O-O {[%clk 0:01:38]} 15. Nc3 {[%clk 0:02:15]}  Rfe8 {[%clk 0:01:34]} 16. Bg5 {[%clk 0:02:13]}  Nh7 {[%clk 0:01:29]} 17. Bf4 {[%clk 0:02:10]}  Bg5 {[%clk 0:01:18]} 18. Bxg5 {[%clk 0:02:07]}  Nxg5 {[%clk 0:01:19]} 19. f4 {[%clk 0:02:03]}  Ne6 {[%clk 0:01:17]} 20. f5 {[%clk 0:01:55]}  Nd4 {[%clk 0:01:16]} 21. Nd5 {[%clk 0:01:52]}  Rab8 {[%clk 0:00:53]} 22. c3 {[%clk 0:01:48]}  Nc6 {[%clk 0:00:52]} 23. Qg3 {[%clk 0:01:47]}  Kf8 {[%clk 0:00:48]} 24. f6 {[%clk 0:01:43]}  gxf6 {[%clk 0:00:46]} 25. Nxf6 {[%clk 0:01:42]}  Qe6 {[%clk 0:00:46]} 26. Qg5 {[%clk 0:01:32]}  Red8 {[%clk 0:00:25]} 27. Rf1 {[%clk 0:01:21]}  Ke7 {[%clk 0:00:24]} 28. Nd5+ {[%clk 0:01:17]}  Kd7 {[%clk 0:00:23]} 29. Rf6 {[%clk 0:01:18]}  Qe8 {[%clk 0:00:22]} 30. Qf5+ {[%clk 0:01:17]} 1-0


[Site "https://www.chess.com"]

[Event "Titled Tuesday Blitz June 8 2021"]
[White "Salinas Herrera, Pablo"]
[Black "Maksimenko, Viktor"]
[WhiteFideId "3407128"]
[BlackFideId "13710478"]
[WhiteElo "2541"]
[BlackElo "2269"]
[Result "1/2-1/2"]
[Round "07"]
[TimeControl "180+1"]
[Date "2021.06.08"]
[WhiteClock "0:00:06"]
[BlackClock "0:00:06"]

1. e4 {[%clk 0:03:00]}  e5 {[%clk 0:02:59]} 2. Nf3 {[%clk 0:03:00]}  Nc6 {[%clk 0:03:00]} 3. Bb5 {[%clk 0:03:00]}  a6 {[%clk 0:03:00]} 4. Ba4 {[%clk 0:03:00]}  Nf6 {[%clk 0:03:00]} 5. O-O {[%clk 0:02:59]}  Be7 {[%clk 0:03:01]} 6. d3 {[%clk 0:02:56]}  b5 {[%clk 0:02:58]} 7. Bb3 {[%clk 0:02:55]}  O-O {[%clk 0:02:58]} 8. a3 {[%clk 0:02:51]}  d6 {[%clk 0:02:55]} 9. Nc3 {[%clk 0:02:49]}  Bg4 {[%clk 0:02:50]} 10. Be3 {[%clk 0:02:45]}  Nd4 {[%clk 0:02:26]} 11. Bxd4 {[%clk 0:02:44]}  exd4 {[%clk 0:02:27]} 12. Nd5 {[%clk 0:02:44]}  c5 {[%clk 0:02:10]} 13. h3 {[%clk 0:02:43]}  Be6 {[%clk 0:02:03]} 14. Nxf6+ {[%clk 0:02:29]}  Bxf6 {[%clk 0:02:02]} 15. Bxe6 {[%clk 0:02:30]}  fxe6 {[%clk 0:02:03]} 16. e5 {[%clk 0:02:30]}  Bxe5 {[%clk 0:02:02]} 17. Nxe5 {[%clk 0:02:31]}  dxe5 {[%clk 0:02:03]} 18. Qe2 {[%clk 0:02:31]}  Rf5 {[%clk 0:02:01]} 19. f4 {[%clk 0:02:29]}  Qd5 {[%clk 0:01:55]} 20. Rae1 {[%clk 0:02:11]}  Raf8 {[%clk 0:01:08]} 21. fxe5 {[%clk 0:02:10]}  a5 {[%clk 0:01:06]} 22. Rxf5 {[%clk 0:02:05]}  Rxf5 {[%clk 0:01:05]} 23. b3 {[%clk 0:02:02]}  a4 {[%clk 0:00:57]} 24. bxa4 {[%clk 0:02:02]}  bxa4 {[%clk 0:00:58]} 25. Qe4 {[%clk 0:01:33]}  Qxe4 {[%clk 0:00:57]} 26. Rxe4 {[%clk 0:01:33]}  Rf7 {[%clk 0:00:51]} 27. c3 {[%clk 0:01:26]}  dxc3 {[%clk 0:00:28]} 28. Rxa4 {[%clk 0:01:26]}  Rd7 {[%clk 0:00:26]} 29. Rc4 {[%clk 0:01:26]}  Rxd3 {[%clk 0:00:26]} 30. Rxc5 {[%clk 0:01:26]}  Kf7 {[%clk 0:00:23]} 31. a4 {[%clk 0:01:24]}  Kg6 {[%clk 0:00:17]} 32. a5 {[%clk 0:01:23]}  Rd5 {[%clk 0:00:13]} 33. Rxc3 {[%clk 0:01:23]}  Rxa5 {[%clk 0:00:13]} 34. Rg3+ {[%clk 0:01:23]}  Kh6 {[%clk 0:00:12]} 35. Re3 {[%clk 0:01:23]}  g5 {[%clk 0:00:11]} 36. g4 {[%clk 0:01:22]}  Kg6 {[%clk 0:00:12]} 37. Kg2 {[%clk 0:01:23]}  h5 {[%clk 0:00:13]} 38. Kg3 {[%clk 0:01:23]}  Ra4 {[%clk 0:00:12]} 39. Rf3 {[%clk 0:01:17]}  Re4 {[%clk 0:00:10]} 40. Rf6+ {[%clk 0:01:17]}  Kg7 {[%clk 0:00:10]} 41. Rxe6 {[%clk 0:01:18]}  Re3+ {[%clk 0:00:07]} 42. Kg2 {[%clk 0:01:18]}  h4 {[%clk 0:00:07]} 43. Re7+ {[%clk 0:01:11]}  Kg6 {[%clk 0:00:07]} 44. Re8 {[%clk 0:01:03]}  Kf7 {[%clk 0:00:07]} 45. Ra8 {[%clk 0:00:52]}  Rxe5 {[%clk 0:00:07]} 46. Ra6 {[%clk 0:00:53]}  Re6 {[%clk 0:00:06]} 47. Ra5 {[%clk 0:00:52]}  Kg6 {[%clk 0:00:06]} 48. Kf3 {[%clk 0:00:53]}  Rf6+ {[%clk 0:00:07]} 49. Ke4 {[%clk 0:00:44]}  Re6+ {[%clk 0:00:07]} 50. Re5 {[%clk 0:00:40]}  Rf6 {[%clk 0:00:06]} 51. Rd5 {[%clk 0:00:14]}  Ra6 {[%clk 0:00:06]} 52. Ke5 {[%clk 0:00:13]}  Ra3 {[%clk 0:00:06]} 53. Rd6+ {[%clk 0:00:13]}  Kg7 {[%clk 0:00:07]} 54. Kf5 {[%clk 0:00:13]}  Ra5+ {[%clk 0:00:07]} 55. Ke6 {[%clk 0:00:12]}  Ra3 {[%clk 0:00:07]} 56. Kf5 {[%clk 0:00:11]}  Ra5+ {[%clk 0:00:07]} 57. Ke4 {[%clk 0:00:10]}  Ra3 {[%clk 0:00:07]} 58. Rd3 {[%clk 0:00:10]}  Ra4+ {[%clk 0:00:08]} 59. Ke5 {[%clk 0:00:10]}  Ra5+ {[%clk 0:00:08]} 60. Rd5 {[%clk 0:00:10]}  Ra3 {[%clk 0:00:07]} 61. Kf5 {[%clk 0:00:06]}  Rxh3 {[%clk 0:00:05]} 62. Rd7+ {[%clk 0:00:07]}  Kh6 {[%clk 0:00:04]} 63. Rd6+ {[%clk 0:00:07]}  Kg7 {[%clk 0:00:05]} 64. Kxg5 {[%clk 0:00:08]}  Rh1 {[%clk 0:00:05]} 65. Rd7+ {[%clk 0:00:08]}  Kf8 {[%clk 0:00:05]} 66. Kg6 {[%clk 0:00:05]}  Ke8 {[%clk 0:00:05]} 67. Rh7 {[%clk 0:00:05]}  Kf8 {[%clk 0:00:04]} 68. g5 {[%clk 0:00:06]}  h3 {[%clk 0:00:05]} 69. Rh8+ {[%clk 0:00:06]}  Ke7 {[%clk 0:00:05]} 70. Kg7 {[%clk 0:00:07]}  h2 {[%clk 0:00:05]} 71. g6 {[%clk 0:00:07]}  Ke6 {[%clk 0:00:05]} 72. Rh3 {[%clk 0:00:07]}  Kf5 {[%clk 0:00:05]} 73. Kf7 {[%clk 0:00:07]}  Ke5 {[%clk 0:00:03]} 74. Kg8 {[%clk 0:00:07]}  Rg1 {[%clk 0:00:03]} 75. Rxh2 {[%clk 0:00:05]}  Rxg6+ {[%clk 0:00:04]} 76. Kf7 {[%clk 0:00:05]}  Rf6+ {[%clk 0:00:04]} 77. Ke7 {[%clk 0:00:05]}  Re6+ {[%clk 0:00:05]} 78. Kd7 {[%clk 0:00:06]}  Rd6+ {[%clk 0:00:05]} 79. Ke7 {[%clk 0:00:06]}  Rd4 {[%clk 0:00:05]} 80. Rh5+ {[%clk 0:00:06]}  Ke4 {[%clk 0:00:05]} 81. Ke6 {[%clk 0:00:06]}  Kd3 {[%clk 0:00:06]} 82. Rd5 {[%clk 0:00:06]}  Rxd5 {[%clk 0:00:06]} 83. Kxd5 {[%clk 0:00:06]} 1/2-1/2


[Site "https://www.chess.com"]

[Event "Titled Tuesday Blitz June 8 2021"]
[White "Samsonkin, Artiom"]
[Black "Mezentsev, Ivan"]
[WhiteFideId "13503111"]
[BlackFideId "13706195"]
[WhiteElo "2513"]
[BlackElo "2295"]
[Result "1-0"]
[Round "07"]
[TimeControl "180+1"]
[Date "2021.06.08"]
[WhiteClock "0:00:53"]
[BlackClock "0:01:14"]

1. e4 {[%clk 0:03:00]}  d5 {[%clk 0:02:56]} 2. exd5 {[%clk 0:03:00]}  Qxd5 {[%clk 0:02:54]} 3. Nf3 {[%clk 0:03:01]}  Nf6 {[%clk 0:02:53]} 4. Be2 {[%clk 0:02:58]}  c6 {[%clk 0:02:50]} 5. O-O {[%clk 0:02:57]}  Bg4 {[%clk 0:02:49]} 6. h3 {[%clk 0:02:57]}  Bh5 {[%clk 0:02:48]} 7. c4 {[%clk 0:02:48]}  Qd8 {[%clk 0:02:46]} 8. Qb3 {[%clk 0:02:43]}  Qb6 {[%clk 0:02:43]} 9. d4 {[%clk 0:02:37]}  e6 {[%clk 0:02:42]} 10. Nc3 {[%clk 0:02:37]}  Nbd7 {[%clk 0:02:38]} 11. Bf4 {[%clk 0:02:35]}  Be7 {[%clk 0:02:36]} 12. c5 {[%clk 0:02:18]}  Qxb3 {[%clk 0:02:33]} 13. axb3 {[%clk 0:02:18]}  O-O {[%clk 0:02:31]} 14. b4 {[%clk 0:02:14]}  a6 {[%clk 0:02:31]} 15. g4 {[%clk 0:02:11]}  Bg6 {[%clk 0:02:31]} 16. Nd2 {[%clk 0:02:04]}  Nd5 {[%clk 0:02:28]} 17. Nxd5 {[%clk 0:02:01]}  exd5 {[%clk 0:02:24]} 18. Nb3 {[%clk 0:01:54]}  Bd8 {[%clk 0:02:24]} 19. Rfe1 {[%clk 0:01:44]}  Re8 {[%clk 0:02:20]} 20. Bxa6 {[%clk 0:01:36]}  Rxe1+ {[%clk 0:02:18]} 21. Rxe1 {[%clk 0:01:35]}  bxa6 {[%clk 0:02:08]} 22. Re8+ {[%clk 0:01:34]}  Nf8 {[%clk 0:02:08]} 23. Bd6 {[%clk 0:01:34]}  h5 {[%clk 0:02:01]} 24. Rxf8+ {[%clk 0:01:33]}  Kh7 {[%clk 0:02:01]} 25. Na5 {[%clk 0:01:08]}  Bxa5 {[%clk 0:01:25]} 26. Rxa8 {[%clk 0:01:07]}  Bxb4 {[%clk 0:01:25]} 27. Rxa6 {[%clk 0:01:07]}  Bd3 {[%clk 0:01:18]} 28. Rxc6 {[%clk 0:01:06]}  hxg4 {[%clk 0:01:16]} 29. hxg4 {[%clk 0:01:04]}  f6 {[%clk 0:01:16]} 30. Rb6 {[%clk 0:00:59]}  Ba5 {[%clk 0:01:15]} 31. Rb3 {[%clk 0:00:56]}  Bc4 {[%clk 0:01:15]} 32. Ra3 {[%clk 0:00:57]}  Bb4 {[%clk 0:01:14]} 33. Ra4 {[%clk 0:00:54]}  Bxc5 {[%clk 0:01:14]} 34. dxc5 {[%clk 0:00:53]} 1-0


[Site "https://www.chess.com"]